bitfinex/quotes_SOLUSD_20251106
["timestamp","ask_amount","ask_price","bid_price","bid_amount"]
[1762446214428,7.72,156.31,156.3,7.03769319]
[1762446214629,7.72,156.31,156.26,6.39939129]
[1762446214810,7.72,156.31,156.29,7.03769319]
[1762446215429,0.72,156.3,156.26,6.39939129]
[1762446215613,0.72,156.3,156.28,7.03769319]
[1762446215820,7.72,156.31,156.28,7.03769319]
[1762446216018,8.44,156.31,156.29,7.03769319]
[1762446216821,8.44,156.31,156.28,13.43616263]
[1762446217708,8.44,156.31,156.28,6.39846944]
[1762446217910,8.44,156.31,156.28,13.43616263]
[1762446218629,0.67,156.3,156.24,36.5927956]
[1762446218814,9.78882769,156.29,156.26,7.03769319]
[1762446219022,9.78882769,156.29,156.25,13.43769319]
[1762446219333,9.78882769,156.27,156.23,13.43842017]
[1762446219638,7.72,156.26,156.23,13.43842017]
[1762446220020,8.39,156.26,156.23,7.03769319]
[1762446220221,8.39,156.26,156.24,7.03769319]
[1762446220222,7.72,156.26,156.24,7.03769319]
[1762446220413,8.39,156.26,156.23,13.43840496]
[1762446220814,8.39,156.26,156.24,7.03769319]
[1762446221010,8.39,156.26,156.23,13.43840496]
[1762446221212,7.72,156.26,156.23,13.43840496]
[1762446221437,7.72,156.26,156.19,36.59808606]
[1762446221736,0.67,156.25,156.22,7.03769319]
[1762446222865,7.72,156.26,156.23,7.03769319]
[1762446223152,0.67,156.25,156.22,13.43882951]
[1762446224442,0.67,156.25,156.23,7.03769319]
[1762446224918,9.78882769,156.24,156.21,7.03769319]
[1762446225333,0.67,156.24,156.21,7.03769319]
[1762446226315,7.72,156.23,156.21,7.03769319]
[1762446226523,7.72,156.23,156.21,6.40159077]
[1762446226714,7.72,156.23,156.21,13.43928396]
[1762446228026,7.72,156.23,156.2,7.03769319]
[1762446228241,8.39,156.23,156.21,7.03769319]
[1762446228452,0.67,156.22,156.2,7.03769319]
[1762446228615,7.72,156.23,156.2,7.03769319]
[1762446228817,8.39,156.23,156.2,7.03769319]
[1762446229041,0.67,156.22,156.2,7.03769319]
[1762446229541,7.72,156.23,156.21,7.03769319]
[1762446229722,0.67,156.26,156.22,7.03769319]
[1762446229924,7.03769319,156.29,156.2,8.27567361]
[1762446229925,7.72,156.25,156.2,8.27567361]
[1762446230118,7.72,156.25,156.24,7.03769319]
[1762446230332,7.72,156.25,156.22,7.03769319]
[1762446230333,8.39,156.25,156.22,7.03769319]
[1762446230537,0.67,156.24,156.21,13.439332]
[1762446230748,0.67,156.24,156.22,7.03769319]
[1762446231532,0.67,156.24,156.21,6.40163881]
[1762446231839,0.67,156.24,156.21,7.03769319]
[1762446232047,9.78882769,156.23,156.18,6.40286848]
[1762446232254,9.78882769,156.21,156.17,6.40316488]
[1762446232546,7.72,156.2,156.17,13.44085807]
[1762446233041,8.41,156.2,156.17,13.44085807]
[1762446233245,8.41,156.2,156.16,7.03769319]
[1762446233448,8.41,156.2,156.17,7.03769319]
[1762446234129,8.41,156.2,156.17,13.44087069]
[1762446235050,0.69,156.19,156.16,13.44127398]
[1762446236159,0.69,156.19,156.18,6.40286848]
[1762446236649,7.72,156.2,156.18,6.40286848]
[1762446236847,8.41,156.2,156.18,13.44056167]
[1762446237267,7.72,156.2,156.19,7.03769319]
[1762446238444,7.72,156.2,156.18,7.03769319]
[1762446238652,7.72,156.2,156.18,13.44044082]
[1762446239165,7.72,156.2,156.19,7.03769319]
[1762446240356,7.72,156.2,156.19,13.44015173]
[1762446240848,3.36489282,186.43,156.22,20.592]
[1762446240849,0.79974408,156.3,156.22,20.592]
[1762446241054,7.72,156.29,156.28,7.03769319]
[1762446241264,7.72,156.29,156.22,20.592]
[1762446241440,0.69,156.28,156.24,7.03769319]
[1762446241630,7.72,156.29,156.27,7.03769319]
[1762446241830,7.72,156.29,156.28,7.03769319]
[1762446242245,7.72,156.29,156.27,7.03769319]
[1762446242444,7.72,156.29,156.27,13.43675155]
[1762446242838,0.69,156.28,156.26,7.03769319]
[1762446243234,7.72,156.29,156.27,7.03769319]
[1762446243435,8.41,156.29,156.27,7.03769319]
[1762446243642,7.72,156.29,156.26,7.03769319]
[1762446243967,7.72,156.29,156.25,13.43739987]
[1762446243968,0.69,156.28,156.25,13.43739987]
[1762446244345,8.41,156.29,156.26,13.43704744]
[1762446244543,7.72,156.29,156.28,7.03769319]
[1762446245251,0.79928384,156.39,156.31,20.592]
[1762446245448,10.47882769,156.36,156.34,7.03769319]
[1762446245635,10.47882769,156.35,156.31,7.03769319]
[1762446246035,0.69,156.34,156.3,7.03769319]
[1762446246266,0.69,156.34,156.31,7.03769319]
[1762446246656,9.78882769,156.32,156.3,7.03769319]
[1762446246839,7.72,156.31,156.3,7.03769319]
[1762446247034,7.72,156.31,156.3,7.74769319]
[1762446247239,7.72,156.31,156.3,7.03769319]
[1762446247826,7.72,156.31,156.3,7.74769319]
[1762446248375,7.72,156.35,156.3,7.74769319]
[1762446248546,7.72,156.35,156.34,7.03769319]
[1762446249173,7.72,156.35,156.34,14.14400891]
[1762446249367,7.72,156.35,156.34,13.43400891]
[1762446249674,7.72,156.35,156.34,34.73600891]
[1762446249840,7.72,156.35,156.34,34.02600891]
[1762446250045,0.69,156.35,156.34,20.592]
[1762446250261,0.69,156.35,156.32,27.62969319]
[1762446250437,10.47882769,156.35,156.32,27.62969319]
[1762446251455,0.69,156.34,156.32,20.592]
[1762446252073,0.69,156.34,156.31,7.03769319]
[1762446253175,7.08643004,156.34,156.3,13.43556124]
[1762446253378,9.78882769,156.33,156.29,7.03769319]
[1762446253579,16.82652088,156.31,156.26,13.43728361]
[1762446253869,11.27841829,156.33,156.27,7.03769319]
[1762446253870,8.39,156.3,156.27,7.03769319]
[1762446254047,8.39,156.3,156.26,26.99159042]
[1762446254251,7.7,156.3,156.26,34.02928361]
[1762446254462,0.69,156.29,156.26,34.02928361]
[1762446255085,0.69,156.29,156.26,27.62969319]
[1762446255263,7.7,156.3,156.28,7.03769319]
[1762446255952,7.7,156.3,156.29,7.03769319]
[1762446256153,0.69,156.36,156.29,7.03769319]
[1762446256373,7.7,156.36,156.34,7.03769319]
[1762446256551,7.7,156.36,156.32,27.62969319]
[1762446256552,8.39,156.36,156.32,27.62969319]
[1762446256762,0.69,156.35,156.32,27.62969319]
[1762446256972,9.78882769,156.34,156.31,7.03769319]
[1762446257470,7.7,156.36,156.33,7.03769319]
[1762446257665,0.69,156.35,156.32,7.03769319]
[1762446257855,0.69,156.35,156.34,7.03769319]
[1762446258055,0.69,156.35,156.31,6.39742954]
[1762446258056,0.69,156.35,156.32,7.03769319]
[1762446258368,0.69,156.35,156.32,4.47598519]
[1762446258567,0.69,156.35,156.33,4.47598519]
[1762446259256,0.69,156.35,156.33,10.87250075]
[1762446259464,0.69,156.35,156.3,26.98968194]
[1762446259679,0.69,156.35,156.32,4.47598519]
[1762446259868,0.69,156.35,156.33,4.47598519]
[1762446260063,0.79,156.41,156.34,25.06798519]
[1762446260264,0.79,156.41,156.39,4.47598519]
[1762446260265,0.1,156.41,156.39,4.47598519]
[1762446260474,7.8,156.41,156.35,21.87837978]
[1762446260667,7.8,156.41,156.36,4.47598519]
[1762446260668,9.78882769,156.4,156.36,4.47598519]
[1762446260871,10.47882769,156.4,156.36,4.47598519]
[1762446261069,0.69,156.39,156.35,4.47598519]
[1762446261467,9.78882769,156.38,156.3,20.592]
[1762446261668,14.26481288,156.38,156.33,4.47598519]
[1762446261886,0.69,156.37,156.34,4.47598519]
[1762446262061,7.7,156.36,156.28,23.10570001]
[1762446262262,7.7,156.36,156.32,4.47598519]
[1762446262476,8.39,156.36,156.32,4.47598519]
[1762446262809,0.69,156.35,156.32,4.47598519]
[1762446263385,0.69,156.35,156.32,10.87301251]
[1762446263586,7.7,156.36,156.33,4.47598519]
[1762446263889,7.7,156.36,156.35,4.47598519]
[1762446264079,8.39,156.36,156.34,4.47598519]
[1762446264278,0.69,156.35,156.33,4.47598519]
[1762446264990,0.69,156.35,156.31,22.39136474]
[1762446264991,0.69,156.35,156.32,4.47598519]
[1762446265193,7.7,156.36,156.34,4.47598519]
[1762446265368,7.7,156.36,156.31,22.39136474]
[1762446265369,0.69,156.35,156.33,4.47598519]
[1762446265569,0.69,156.35,156.32,6.39683566]
[1762446265763,0.69,156.35,156.32,10.87282085]
[1762446266288,0.69,156.35,156.32,4.47598519]
[1762446266482,0.69,156.35,156.32,1.90975885]
[1762446266689,0.69,156.35,156.33,1.90975885]
[1762446267293,0.69,156.35,156.32,1.90975885]
[1762446267476,0.69,156.35,156.3,1.90975885]
[1762446267477,7.08590717,156.35,156.3,1.90975885]
[1762446268004,0.69,156.34,156.31,1.90975885]
[1762446268299,0.69,156.34,156.32,1.90975885]
[1762446268485,0.69,156.34,156.29,22.39426705]
[1762446268486,0.69,156.34,156.31,4.47618266]
[1762446268870,9.78882769,156.33,156.29,4.47618266]
[1762446269300,0.69,156.32,156.29,4.47618266]
[1762446269488,9.78882769,156.29,156.21,0.68]
[1762446269695,14.26501035,156.29,156.24,4.47618266]
[1762446269876,14.26501035,156.29,156.21,0.68]
[1762446269877,9.78882769,156.27,156.21,7.08163881]
[1762446270080,7.7,156.26,156.23,4.47618266]
[1762446270284,7.7,156.26,156.22,4.47618266]
[1762446270796,8.39,156.26,156.23,4.47618266]
[1762446270972,7.7,156.26,156.23,25.06818266]
[1762446271179,7.7,156.26,156.24,4.47618266]
[1762446271594,7.7,156.25,156.23,31.46885798]
[1762446272283,7.7,156.25,156.24,5.15618266]
[1762446273399,7.7,156.3,156.24,5.15618266]
[1762446273580,7.7,156.3,156.25,7.08]
[1762446274088,7.7,156.3,156.26,0.68]
[1762446274600,7.7,156.3,156.29,4.47618266]
[1762446274805,7.08596673,156.35,156.29,4.47618266]
[1762446275003,7.08596673,156.35,156.33,4.47618266]
[1762446275004,7.7,156.34,156.33,4.47618266]
[1762446275377,12.86618266,156.34,156.26,0.68]
[1762446275587,0.69,156.33,156.29,4.47618266]
[1762446275803,10.47882769,156.33,156.29,4.47618266]
[1762446276000,9.78882769,156.32,156.29,4.47618266]
[1762446276193,9.78882769,156.35,156.3,0.68]
[1762446276394,10.47882769,156.35,156.33,4.47618266]
[1762446276582,7.7,156.36,156.33,4.47618266]
[1762446276786,8.36,156.36,156.33,4.47618266]
[1762446277208,8.36,156.36,156.34,4.47618266]
[1762446277896,8.36,156.36,156.33,4.47618266]
[1762446278805,7.7,156.36,156.34,4.47618266]
[1762446278982,7.7,156.36,156.35,4.47618266]
[1762446279386,7.7,156.36,156.34,4.47618266]
[1762446280399,8.36,156.36,156.32,10.87317334]
[1762446280615,7.7,156.36,156.32,10.87317334]
[1762446281105,0.66,156.35,156.33,4.47618266]
[1762446281306,8.36,156.36,156.33,4.47618266]
[1762446282922,7.7,156.35,156.33,7.11659953]
[1762446283084,7.7,156.36,156.33,7.11659953]
[1762446283486,7.7,156.36,156.33,6.39659953]
[1762446283808,8.36,156.36,156.31,7.11718913]
[1762446284178,8.36,156.36,156.33,4.47618266]
[1762446284684,20.66132607,156.34,156.29,4.47618266]
[1762446284891,9.78882769,156.34,156.31,4.47618266]
[1762446285096,10.44882769,156.34,156.31,4.47618266]
[1762446285625,0.66,156.33,156.3,4.47618266]
[1762446285793,9.78882769,156.34,156.3,4.47618266]
[1762446285986,10.44882769,156.34,156.28,23.11570001]
[1762446286187,10.44882769,156.34,156.3,4.47618266]
[1762446286985,10.44882769,156.34,156.28,23.11570001]
[1762446287202,16.84519656,156.34,156.3,4.47618266]
[1762446287399,16.84519656,156.34,156.28,0.72]
[1762446287601,16.84519656,156.34,156.3,4.47618266]
[1762446287910,16.18519656,156.34,156.3,0.6714274]
[1762446288098,14.26501035,156.32,156.27,4.47618266]
[1762446288292,0.66,156.33,156.31,4.47618266]
[1762446288611,0.1,156.41,156.32,8.95236532]
[1762446288801,0.1,156.41,156.35,4.47618266]
[1762446288802,0.66,156.4,156.35,4.47618266]
[1762446289004,0.66,156.4,156.32,8.89142768]
[1762446289005,0.66,156.4,156.36,0.57650637]
[1762446289213,4.47618266,156.39,156.33,6.39670612]
[1762446289522,7.7,156.38,156.34,4.47618266]
[1762446289703,7.7,156.38,156.29,22.39408742]
[1762446290021,0.66,156.37,156.33,4.47618266]
[1762446290219,0.66,156.37,156.31,20.592]
[1762446290421,0.66,156.37,156.33,4.47618266]
[1762446291495,0.66,156.37,156.32,6.39682464]
[1762446291496,7.05510215,156.37,156.32,10.8730073]
[1762446292129,11.53128481,156.37,156.32,4.47618266]
[1762446292422,0.65,156.36,156.32,4.47618266]
[1762446293201,11.52196756,156.36,156.3,4.47618266]
[1762446293402,11.52196756,156.36,156.29,20.592]
[1762446293403,14.26501035,156.35,156.29,25.06818266]
[1762446293603,10.43882769,156.35,156.31,4.47618266]
[1762446293816,0.65,156.38,156.34,4.47618266]
[1762446294007,0.65,156.38,156.36,20.592]
[1762446294217,0.65,156.38,156.37,4.47618266]
[1762446294629,0.65,156.4,156.37,4.47618266]
[1762446294806,0.65,156.4,156.39,4.47618266]
[1762446295011,0.1,156.41,156.39,4.47618266]
[1762446295211,0.1,156.41,156.4,10.87004455]
[1762446296129,0.75,156.41,156.4,10.87004455]
[1762446298103,0.1,156.41,156.4,10.87004455]
[1762446298331,0.1,156.49,156.43,20.592]
[1762446298535,0.1,156.49,156.48,4.47618266]
[1762446299130,0.1,156.49,156.48,25.06818266]
[1762446299334,0.1,156.49,156.48,31.4587757]
[1762446299843,1e-08,156.49,156.48,31.4587757]
[1762446300006,0.1,156.51,156.48,52.13144097]
[1762446300206,0.1,156.52,156.5,29.54436532]
[1762446300407,0.1,156.52,156.51,4.47618266]
[1762446300626,0.1,156.52,156.51,8.95236532]
[1762446301036,0.1,156.52,156.51,4.47618266]
[1762446301208,0.1,156.52,156.51,8.95236532]
[1762446301531,0.1,156.53,156.52,26.98095987]
[1762446301934,0.1,156.58,156.54,20.592]
[1762446302111,0.1,156.58,156.56,25.06818266]
[1762446302321,0.65000001,156.57,156.54,4.47618266]
[1762446302536,0.65000001,156.57,156.53,4.47618266]
[1762446302722,0.65000001,156.57,156.54,4.47618266]
[1762446303124,1e-08,156.57,156.56,4.47618266]
[1762446303324,0.65000001,156.57,156.56,4.47618266]
[1762446303533,1e-08,156.57,156.56,10.8635102]
[1762446304447,0.65000001,156.57,156.56,4.47618266]
[1762446304750,5.12618267,156.57,156.48,6.39059304]
[1762446304951,5.12618267,156.57,156.42,6.47618265]
[1762446304952,4.47618266,156.54,156.43,13.55263568]
[1762446305136,5.12618266,156.53,156.48,4.47618266]
[1762446305334,0.65,156.53,156.49,4.47618266]
[1762446305546,0.65,156.53,156.51,4.47618266]
[1762446305743,0.65,156.53,156.5,4.47618266]
[1762446306146,0.65,156.53,156.51,4.47618266]
[1762446306338,0.65,156.53,156.5,4.47618266]
[1762446306553,0.65,156.53,156.51,4.47618266]
[1762446307255,0.65,156.53,156.52,4.47618266]
[1762446307449,110.68,156.55,156.52,4.47618266]
[1762446307627,0.65,156.54,156.53,4.47618266]
[1762446309057,7.76000001,156.57,156.53,4.47618266]
[1762446309058,1e-08,156.57,156.53,4.47618266]
[1762446309240,1e-08,156.57,156.54,4.47618266]
[1762446309442,1e-08,156.57,156.55,10.863842]
[1762446309640,1e-08,156.57,156.55,6.38765934]
[1762446309839,0.65000001,156.57,156.55,6.38765934]
[1762446310235,0.65000001,156.57,156.56,4.47618266]
[1762446310445,1e-08,156.57,156.56,4.47618266]
[1762446310735,0.65000001,156.57,156.53,31.45668734]
[1762446311145,0.65000001,156.57,156.55,4.47618266]
[1762446311540,0.65000001,156.57,156.56,4.47618266]
[1762446311741,0.65000001,156.57,156.55,4.47618266]
[1762446311948,0.65000001,156.57,156.54,4.47618266]
[1762446312462,0.65000001,156.57,156.48,0.57478221]
[1762446312463,4.47618266,156.55,156.48,15.97561421]
[1762446312656,1.44836495,156.57,156.49,4.47618266]
[1762446312657,107.37618266,156.54,156.49,4.47618266]
[1762446312840,7.76,156.53,156.5,4.47618266]
[1762446313040,8.41,156.53,156.49,4.47618266]
[1762446313240,0.65,156.52,156.49,4.47618266]
[1762446313435,7.76,156.53,156.51,4.47618266]
[1762446313673,0.65,156.52,156.51,4.47618266]
[1762446313832,0.65,156.52,156.5,4.47618266]
[1762446314358,0.65,156.52,156.48,36.56832806]
[1762446314359,7.76,156.53,156.51,4.47618266]
[1762446314562,7.76,156.53,156.48,36.56832806]
[1762446314563,7.76,156.53,156.52,4.47618266]
[1762446314770,8.41,156.53,156.52,4.47618266]
[1762446315375,8.41,156.53,156.51,4.47618266]
[1762446315736,0.65,156.52,156.51,4.47618266]
[1762446315937,0.65,156.52,156.49,6.39018467]
[1762446316171,0.65,156.52,156.5,4.47618266]
[1762446316462,0.65,156.52,156.48,20.592]
[1762446316643,0.65,156.52,156.49,4.47618266]
[1762446317151,0.65,156.52,156.5,4.47618266]
[1762446317346,0.65,156.52,156.48,26.98245714]
[1762446317552,0.65,156.52,156.47,4.47618266]
[1762446317553,6.38936809,156.51,156.47,4.47618266]
[1762446317748,7.74,156.51,156.49,4.47618266]
[1762446318069,0.65,156.5,156.49,4.47618266]
[1762446318245,5.12618266,156.5,156.45,4.47618266]
[1762446318451,110.57207249,156.5,156.45,7.02207249]
[1762446318657,0.65,156.49,156.47,7.02207249]
[1762446319764,7.67207249,156.49,156.44,7.02207249]
[1762446320137,0.65,156.48,156.44,7.02207249]
[1762446320643,0.65,156.48,156.45,7.02207249]
[1762446321038,0.65,156.48,156.44,6.39189443]
[1762446321265,0.65,156.48,156.45,7.02207249]
[1762446321457,0.65,156.48,156.44,7.02207249]
[1762446321658,7.67207249,156.48,156.43,13.41460343]
[1762446321862,6.39100146,156.47,156.42,27.61407249]
[1762446322056,7.72,156.46,156.44,7.02207249]
[1762446322262,8.37,156.46,156.44,7.02207249]
[1762446322570,0.68,156.45,156.44,7.02207249]
[1762446322944,7.72,156.46,156.44,7.02207249]
[1762446323255,8.4,156.46,156.45,7.02207249]
[1762446323572,8.4,156.46,156.44,7.02207249]
[1762446324061,8.4,156.46,156.45,7.02207249]
[1762446324263,8.4,156.46,156.42,42.96753241]
[1762446324264,7.72,156.46,156.42,42.96753241]
[1762446324451,0.68,156.45,156.44,7.02207249]
[1762446324644,0.68,156.45,156.43,7.02207249]
[1762446324845,0.68,156.45,156.34,0.57604458]
[1762446325069,7.02207249,156.42,156.37,7.02207249]
[1762446325268,7.7,156.41,156.37,7.02207249]
[1762446325452,7.7,156.41,156.38,7.02207249]
[1762446325653,8.38,156.41,156.38,7.02207249]
[1762446325845,0.68,156.4,156.38,7.02207249]
[1762446326241,0.68,156.4,156.38,13.41663638]
[1762446328371,0.68,156.4,156.39,7.02207249]
[1762446328566,0.68,156.4,156.38,6.39456389]
[1762446328769,0.68,156.4,156.38,13.41663638]
[1762446330086,0.68,156.4,156.37,13.41706545]
[1762446330749,7.7,156.41,156.39,7.02207249]
[1762446330949,0.68,156.4,156.38,7.02207249]
[1762446331667,0.68,156.4,156.37,7.02207249]
[1762446331970,7.02207249,156.38,156.28,9.98882769]
[1762446332189,7.02207249,156.32,156.28,6.59860845]
[1762446332349,21.11945201,156.32,156.28,0.2]
[1762446332546,0.68,156.31,156.28,0.2]
[1762446332747,0.68,156.31,156.28,6.59873024]
[1762446332963,0.68,156.34,156.3,7.02207249]
[1762446333149,0.68,156.34,156.29,0.57728784]
[1762446333350,0.68,156.34,156.33,7.02207249]
[1762446333550,8.38,156.36,156.33,7.02207249]
[1762446333851,0.68,156.35,156.29,0.79728784]
[1762446334162,0.68,156.35,156.29,0.57728784]
[1762446334368,0.68,156.35,156.28,43.18765882]
[1762446334369,0.68,156.35,156.33,7.02207249]
[1762446335378,0.68,156.35,156.32,13.41891051]
[1762446335764,0.68,156.35,156.31,7.02207249]
[1762446335962,0.68,156.35,156.31,13.41948607]
[1762446336972,0.68,156.35,156.32,7.02207249]
[1762446337171,0.68,156.35,156.31,13.41948607]
[1762446337475,0.68,156.35,156.32,7.02207249]
[1762446337684,0.68,156.35,156.31,6.39741358]
[1762446337896,0.68,156.35,156.31,13.41948607]
[1762446338047,0.68,156.35,156.31,6.39741358]
[1762446338368,0.68,156.35,156.31,13.41948607]
[1762446338576,0.68,156.35,156.32,7.02207249]
[1762446338877,0.68,156.35,156.34,7.02207249]
[1762446339057,0.68,156.35,156.33,7.02207249]
[1762446340059,0.68,156.35,156.29,22.39408385]
[1762446340394,0.68,156.35,156.32,7.02207249]
[1762446340559,0.68,156.35,156.33,13.41862419]
[1762446341276,0.68,156.4,156.34,27.83407249]
[1762446341581,0.68,156.4,156.39,7.02207249]
[1762446341801,19.21537229,156.55,156.39,20.592]
[1762446341802,0.68,156.43,156.39,20.592]
[1762446342301,0.68,156.43,156.39,27.61407249]
[1762446342673,0.68,156.43,156.37,7.02207249]
[1762446342983,8.66,156.43,156.38,7.02207249]
[1762446343180,8.66,156.43,156.37,7.02207249]
[1762446343181,7.02207249,156.42,156.37,7.02207249]
[1762446343380,0.68,156.42,156.37,7.02207249]
[1762446343579,0.68,156.41,156.38,7.02207249]
[1762446343884,0.68,156.41,156.36,22.38384851]
[1762446344394,0.68,156.41,156.35,27.61407249]
[1762446344395,7.02207249,156.4,156.35,27.61407249]
[1762446344606,7.70207249,156.41,156.36,7.02207249]
[1762446344900,7.70207249,156.41,156.31,0.22]
[1762446344901,0.68,156.4,156.37,7.02207249]
[1762446346398,31.18381003,156.43,156.37,7.02207249]
[1762446346399,8.66,156.43,156.39,7.02207249]
[1762446346606,8.66,156.43,156.41,7.02207249]
[1762446346778,8.66,156.43,156.4,13.41586287]
[1762446347181,0.68,156.42,156.4,13.41586287]
[1762446347393,0.68,156.42,156.36,20.592]
[1762446347698,8.66,156.43,156.41,7.02207249]
[1762446347941,7.98,156.43,156.41,7.02207249]
[1762446348115,0.68,156.42,156.39,7.02207249]
[1762446349002,0.68,156.42,156.4,7.02207249]
[1762446349398,0.68,156.42,156.39,7.02207249]
[1762446349599,7.70207249,156.42,156.37,6.39508857]
[1762446349906,0.68,156.42,156.38,7.02207249]
[1762446350112,0.68,156.41,156.39,7.02207249]
[1762446350314,0.68,156.41,156.38,7.02207249]
[1762446350682,0.68,156.41,156.39,7.02207249]
[1762446350885,0.68,156.41,156.37,15.98772142]
[1762446351207,0.68,156.41,156.39,7.02207249]
[1762446351809,0.68,156.41,156.37,22.38280999]
[1762446351810,0.68,156.41,156.4,7.02207249]
[1762446351990,0.68,156.41,156.38,7.02207249]
[1762446352500,0.68,156.41,156.37,13.41716106]
[1762446352692,0.68,156.41,156.38,7.02207249]
[1762446352894,0.68,156.41,156.38,13.41659567]
[1762446353110,0.68,156.41,156.39,7.02207249]
[1762446353317,0.68,156.41,156.38,13.41659567]
[1762446354113,0.68,156.41,156.39,7.02207249]
[1762446354707,0.68,156.41,156.38,13.41659567]
[1762446355309,0.68,156.41,156.39,7.02207249]
[1762446355512,7.98,156.43,156.4,7.02207249]
[1762446355817,8.64,156.43,156.4,7.02207249]
[1762446356124,0.66,156.42,156.41,7.02207249]
[1762446356714,110.88,156.43,156.41,7.02207249]
[1762446356715,7.98,156.43,156.41,7.02207249]
[1762446356919,0.66,156.47,156.42,7.02207249]
[1762446357098,0.66,156.47,156.44,7.02207249]
[1762446357307,0.66,156.47,156.45,7.02207249]
[1762446357612,0.66,156.47,156.44,13.41400732]
[1762446357918,0.66,156.47,156.44,7.02207249]
[1762446358608,0.66,156.47,156.43,13.41466272]
[1762446358805,0.66,156.47,156.44,7.02207249]
[1762446359010,0.66,156.47,156.43,13.41466272]
[1762446360292,0.66,156.47,156.44,7.02207249]
[1762446360512,0.66,156.47,156.38,0.79613846]
[1762446360513,7.02207249,156.45,156.38,7.02207249]
[1762446360698,7.02207249,156.43,156.37,7.02207249]
[1762446360905,0.79872204,156.5,156.42,7.02207249]
[1762446361111,0.66,156.48,156.46,7.02207249]
[1762446361309,7.9,156.5,156.47,7.02207249]
[1762446361515,7.9,156.52,156.49,7.02207249]
[1762446361703,7.9,156.52,156.45,42.96336465]
[1762446361913,7.9,156.52,156.45,20.592]
[1762446361914,7.68207249,156.51,156.45,20.592]
[1762446362118,0.66,156.51,156.48,7.02207249]
[1762446362314,0.66,156.5,156.44,22.37267167]
[1762446362533,7.68207249,156.5,156.44,6.39210405]
[1762446362722,0.66,156.5,156.45,7.02207249]
[1762446362946,0.66,156.49,156.45,7.02207249]
[1762446363127,9.78882769,156.52,156.48,7.02207249]
[1762446363443,50.00000001,156.57,156.51,7.02207249]
[1762446363444,0.66,156.56,156.51,7.02207249]
[1762446363724,0.66,156.55,156.51,6.38936809]
[1762446363906,0.66,156.55,156.51,22.36278831]
[1762446364224,0.66,156.55,156.5,26.98171803]
[1762446364528,0.66,156.55,156.48,7.02207249]
[1762446364529,7.02207249,156.53,156.48,7.02207249]
[1762446364729,23.01719016,156.55,156.48,7.02207249]
[1762446364916,7.02207249,156.53,156.47,20.592]
[1762446365112,15.66207249,156.54,156.48,7.02207249]
[1762446365319,15.66207249,156.54,156.49,7.02207249]
[1762446365320,0.66,156.53,156.49,7.02207249]
[1762446366134,0.66,156.53,156.49,13.41187653]
[1762446366430,0.66,156.53,156.47,20.592]
[1762446366619,0.66,156.53,156.41,8.2]
[1762446366620,7.02207249,156.49,156.41,0.22]
[1762446366820,7.02207249,156.47,156.41,7.02207249]
[1762446367134,7.98,156.47,156.42,27.61407249]
[1762446367307,0.66,156.46,156.42,27.61407249]
[1762446368029,0.66,156.46,156.43,7.02207249]
[1762446368235,0.66,156.46,156.44,6.39222705]
[1762446368537,0.66,156.46,156.43,7.02207249]
[1762446369035,0.66,156.46,156.43,13.41465018]
[1762446369644,7.02207249,156.44,156.39,7.02207249]
[1762446369818,7.05142174,156.46,156.38,7.02207249]
[1762446369819,7.02207249,156.43,156.38,7.02207249]
[1762446370019,7.02207249,156.43,156.37,13.41716106]
[1762446370226,7.68207249,156.42,156.37,13.41716106]
[1762446370436,7.68207249,156.42,156.37,34.00916106]
[1762446370629,0.66,156.41,156.38,7.02207249]
[1762446370834,0.7989773,156.45,156.39,7.02207249]
[1762446370835,7.02207249,156.45,156.39,7.02207249]
[1762446371142,7.68207249,156.44,156.39,7.02207249]